Cogmind - Beta 17.1 @@@ ROGUE MODE // 2026.09.05 @ 09:44:33 Player: qqchimpo Result: Destroyed by G-34 Mercenary with Small Laser Performance ------------- Evolutions (1) 500 Regions Visited (2) 400 Robots Destroyed (12) 60 Value Destroyed (479) 479 Prototype IDs (3) 60 Alien Tech Used (0) 0 Bonus (0) 0 TOTAL SCORE: 1499 Bonus ------- None Cogmind --------- Core Integrity 0/400 Matter 292/300 Energy 100/100 System Corruption 2% Temperature Cool (6) Movement Treading (160) Location -9/Materials Parts ------- > --- POWER (2) -------- (None) > --- PROPULSION (2) --- Light Treads > --- UTILITY (2) ------ Core Shielding Hacking Suite > --- WEAPON (3) ------- (None) > --- INVENTORY (5) ---- Small Storage Unit Peak State ------------ > --- POWER ------------ Light Ion Engine > --- PROPULSION ------- Light Treads Light Treads > --- UTILITY ---------- Sensor Array Hacking Suite > --- WEAPON ----------- Improved EM Shotgun Grenade Launcher Datajack > --- INVENTORY -------- Backup Propulsion I Small Storage Unit Light Cannon [Rating: 12] Favorites ----------- Power Light Ion Engine Engine Light Ion Engine Propulsion Light Treads Treads Light Treads Leg Improved Aluminum Leg Hover Unit Backup Propulsion I Utility Sensor Array Device Sensor Array Storage Small Storage Unit Hackware Hacking Suite Protection Core Shielding Weapon Grenade Launcher Energy Gun Improved EM Shotgun Ballistic Gun Light Assault Rifle Ballistic Cannon Light Cannon Launcher Grenade Launcher Special Melee Weapon Datajack Build | -11 -10 -9 ------- Run | Yrd Mat Mat Slots Evolved 2 | . . 2 Power 1 | . . 1 Propulsion . | . . . Utility . | . . . Weapon 1 | . . 1 Parts Attached 19 | 6 8 5 Power 2 | 1 1 . Engine 2 | 1 1 . Core . | . . . Reactor . | . . . Propulsion 5 | 2 1 2 Treads 3 | 2 . 1 Leg 1 | . . 1 Wheel . | . . . Hover 1 | . 1 . Flight . | . . . Utility 5 | 1 3 1 Device 1 | . 1 . Storage 1 | 1 . . Processor . | . . . Hackware 1 | . 1 . Protection 2 | . 1 1 Artifact . | . . . Weapon 7 | 2 3 2 Energy Gun 1 | . . 1 Energy Cannon . | . . . Ballistic Gun 3 | 2 . 1 Ballistic Cannon 1 | . 1 . Launcher 1 | . 1 . Special Weapon . | . . . Impact Weapon . | . . . Slashing Weapon . | . . . Piercing Weapon . | . . . Special Melee Weapon 1 | . 1 . Unidentified Prototypes 1 | . . 1 Parts Lost 11 | . . 11 Power 1 | . . 1 Propulsion 4 | . . 4 Utility 1 | . . 1 Weapon 5 | . . 5 Highest Loss Streak 7 | . . 7 To Critical Strikes . | . . . Average Backups 1 | . 1 1 Power . | . . . Propulsion . | . . . Utility . | . . . Weapon . | . . . Tool/Special . | . . . Unused Backups . | . . . Power . | . . . Propulsion . | . . . Utility . | . . . Weapon . | . . . Tool/Special . | . . . Average Slot Usage (%) 87 | . 97 70 Engine 12 | . 14 8 Treads 23 | . 26 17 Device 10 | . 12 6 Storage 3 | . 5 . Hackware 9 | . 8 11 Energy Gun 1 | . . 4 Ballistic Gun 2 | . 3 . Ballistic Cannon 4 | . 2 7 Launcher 11 | . 13 8 Special Melee Weapon 5 | . 7 2 Peak Build Rating 12 | 6 9 12 Average Rating 8 | 4 7 9 On Entrance 5 | . 6 9 Avg Prop Armor Cover (%) 15 | . 14 25 Naked Turns . | . . . Heaviest Build 15 | 10 15 13 Greatest Support 40 | 40 40 40 Greatest Overweight (x) 2 | . 1 2 Average Overweight (x) . | . . . Largest Inventory Capacity 8 | 8 8 8 Average Capacity 5 | 7 6 5 Most Carried 4 | 2 4 3 Average Carried 1 | . 1 1 Final Capacity 8 | 8 5 5 Final Carried 3 | . 3 1 Class Distribution -------------------- 90% | Mutant 9% | Skirmisher Dominant Class ---------------- Mutant | -10/Materials Mutant | -9/Materials Resources | -11 -10 -9 ----------- Run | Yrd Mat Mat Matter Collected 639 | 241 205 193 Remotely . | . . . Salvage Created 318 | . 97 221 Parts 21 | . 5 16 Haulers Intercepted . | . . . Recyclers Shooed . | . . . Parts Field Recycled . | . . . Retrieved Matter . | . . . Parts Self-Destructed . | . . . Prevented . | . . . Parts Restored . | . . . Kills | -11 -10 -9 ------- Run | Yrd Mat Mat Combat Hostiles Destroyed 10 | . 3 7 Melee 1 | . . 1 Cannons 3 | . 1 2 AOE 6 | . 2 4 Classes Destroyed 4 | . 2 2 Watcher 2 | . 1 1 Grunt 5 | . 3 2 Duelist 1 | . . 1 Sentry 4 | . . 4 Best Kill Streak 3 | . 3 3 Combat Bots Only 3 | . 3 3 Max Kills in Single Turn 2 | . 2 2 Gunslinging . | . . . Exploded 2 | . 1 2 Melee 1 | . . 1 Uniques/NPCs Destroyed . | . . . Combat | -11 -10 -9 -------- Run | Yrd Mat Mat Hostile Shots Fired 113 | . 3 110 Missed 31 | . 1 30 Hits 82 | . 2 80 Melee 12 | . . 12 Projectile 70 | . 2 68 Critical Strikes 5 | . . 5 Part Disruptions 1 | . . 1 Damage Taken 1375 | . 21 1354 Core 417 | . 11 406 Absorbed by Shields . | . . . Redirected to Shielding 35 | . . 35 Regen/Repaired (Parts) 10 | . 10 . Core Remaining (%) 97 | 100 95 . Volleys Fired 32 | . 6 26 Largest 3 | . 2 3 Hottest 105 | . 60 105 Shots Fired 47 | . 9 38 Gun 8 | . . 8 Cannon 24 | . 4 20 Launcher 15 | . 5 10 Special . | . . . Kinetic 26 | . 4 22 Thermal . | . . . Explosive 15 | . 5 10 Electromagnetic 6 | . . 6 Robot Hit Streak 9 | . 2 9 Robot Miss Streak 2 | . 1 2 Penetration Max . | . . . Secondary Targets . | . . . Shots Hit Robots 30 | . 4 26 Core Hits 31 | . 4 27 Critical Kills . | . . . Critical Parts Destroyed . | . . . Critical Strikes . | . . . Melee Attacks . | . . . Impact . | . . . Slashing . | . . . Piercing . | . . . Sneak Attacks . | . . . Combat Hostiles . | . . . Follow-up Attacks . | . . . Damage Inflicted 982 | . 227 755 Guns 70 | . . 70 Cannons 279 | . 16 263 Explosions 585 | . 211 374 Melee . | . . . Ramming 48 | . . 48 Kinetic 292 | . 16 276 Thermal . | . . . Explosive 552 | . 211 341 Electromagnetic 90 | . . 90 Impact . | . . . Slashing . | . . . Piercing . | . . . Highest Corruption 2 | . . 2 Average Corruption 1 | . . 1 Corruption Purged . | . . . Corruption Blocked . | . . . Overload Shots . | . . . Overflow Damage . | . . . Projectiles . | . . . Explosions . | . . . Melee . | . . . Knockbacks 2 | . . 2 Impact . | . . . Kinetic 2 | . . 2 Secondary . | . . . Self-Inflicted Damage 132 | . . 132 Shots 6 | . . 6 Rammed 17 | . . 17 Targets Rammed 24 | . . 24 Kicked 7 | . . 7 Crushed . | . . . Highest Temperature 45 | . 12 45 Average Temperature 19 | . 10 21 Received Heat Transfer 411 | . 12 399 Siege Activations . | . . . Martial Activations . | . . . Shielding Activations . | . . . Robots Disrupted . | . . . Combat Hostiles . | . . . Robots Corrupted . | . . . Combat Hostiles . | . . . Parts Fried . | . . . Impact Corruptions . | . . . Robots Melted . | . . . Combat Hostiles . | . . . Parts Melted . | . . . Heat Transferred . | . . . Parts Sabotaged . | . . . Parts Stolen . | . . . Parts Stripped . | . . . Power Chain Reactions . | . . . Alert | -11 -10 -9 ------- Run | Yrd Mat Mat Maximum Alert Level . | . . . Low Security (%) 100 | 100 100 100 Level 1 . | . . . Level 2 . | . . . Level 3 . | . . . Level 4 . | . . . Level 5 . | . . . High Security . | . . . Max Security . | . . . Peak Influence 186 | . 85 186 Initial . | . . . Average 32 | . 13 76 Influence Increases 479 | . 136 343 Destroy 0b10 Robot/C 200 | . 60 140 Destroy 0b10 Robot/NC 10 | . 5 5 Destroy Leader 64 | . 12 52 Successful Hack 13 | . 13 . Disable Machine 75 | . . 75 Destroy Structure 87 | . 31 56 Lose Combat Pursuer 30 | . 15 15 Influence Decreases 420 | . 136 284 Time Decay 310 | . 136 174 Lost Part 110 | . . 110 Squads Dispatched 2 | . 2 . Investigation 2 | . 2 . Extermination . | . . . Reinforcement . | . . . Assault . | . . . Garrison . | . . . Intercept . | . . . Searches Triggered . | . . . Construction Impeded . | . . . Haulers Reinforced . | . . . Active Scanning Responses . | . . . Cargo Convoy Interrupts . | . . . Stealth | -11 -10 -9 --------- Run | Yrd Mat Mat Distress Signals 1 | . . 1 Communications Jammed . | . . . Distress Signals . | . . . Times Spotted 19 | . 7 12 Peak Tracking Total 4 | . 3 4 Tactical Retreats 2 | . 1 1 Traps | -11 -10 -9 ------- Run | Yrd Mat Mat Traps Triggered 1 | . 1 . Indirectly . | . . . Trap Hack Attempts . | . . . Triggered . | . . . Disarmed . | . . . Reprogrammed . | . . . Reused . | . . . Traps Extracted . | . . . Installed . | . . . Triggered . | . . . Machines | -11 -10 -9 ---------- Run | Yrd Mat Mat Machines Disabled 5 | . . 5 Max in Single Turn 3 | . . 3 Machines Repaired . | . . . Machines Dismantled . | . . . Machines Sabotaged . | . . . Overloaded Fab Kills . | . . . Hacking | -11 -10 -9 --------- Run | Yrd Mat Mat Machines Accessed 6 | . 6 . Terminals 5 | . 5 . Fabricators . | . . . Repair Stations 1 | . 1 . Recycling Units . | . . . Scanalyzers . | . . . Garrison Access . | . . . Total Hacks 17 | . 17 . Successful 15 | . 15 . Failed 2 | . 2 . Catastrophic . | . . . Database Lockouts . | . . . Manual . | . . . Terminals 11 | . 11 . Fabricators . | . . . Repair Stations 6 | . 6 . Recycling Units . | . . . Scanalyzers . | . . . Garrison Access . | . . . Terminal Hacks 10 | . 10 . Record 6 | . 6 . Prototype ID Bank 1 | . 1 . Emergency Access Points 1 | . 1 . Alert Level 1 | . 1 . Zone Layout 1 | . 1 . Fabricator Hacks . | . . . Repair Station Hacks 5 | . 5 . Scan Component 2 | . 2 . Repair 2 | . 2 . Refit 1 | . 1 . Recycling Unit Hacks . | . . . Scanalyzer . | . . . Garrison Access Hacks . | . . . Unauthorized Hacks . | . . . Terminals . | . . . Fabricators . | . . . Repair Stations . | . . . Recycling Units . | . . . Scanalyzers . | . . . Garrison Access . | . . . Data Cores Recovered . | . . . Used . | . . . Hacking Detections 3 | . 3 . Full Trace Events 2 | . 2 . Feedback Events . | . . . Feedback Blocked . | . . . Robot Schematics Acquired . | . . . Robots Built . | . . . Authchips . | . . . Time . | . . . Total Robot Build Rating . | . . . Part Schematics Acquired . | . . . Parts Built . | . . . Authchips . | . . . Time . | . . . Total Part Build Rating . | . . . Part Studies Acquired . | . . . Parts Repaired 2 | . 2 . Time 52 | . 52 . Parts Recycled . | . . . Recycled Matter . | . . . Retrieved Matter . | . . . Retrieved Components . | . . . Parts Scanalyzed . | . . . Part Schematics Acquired . | . . . Parts Damaged . | . . . Bothacking | -11 -10 -9 ------------ Run | Yrd Mat Mat Used RIF Installer . | . . . Robots Hacked . | . . . Non-combat . | . . . Combat . | . . . Robot Hacks Applied . | . . . Relay Couplers Released . | . . . Fabnet Peak Effective % . | . . . Robots Rewired . | . . . Allies Hacked . | . . . Hacks Repelled . | . . . Allies | -11 -10 -9 -------- Run | Yrd Mat Mat Total Allies . | . . . Largest Group . | . . . Highest-Rated Group . | . . . Highest-Rated Ally . | . . . Total Orders . | . . . Ally Attacks . | . . . Total Damage . | . . . Kills . | . . . Allies Corrupted . | . . . Allies Melted . | . . . Intel | -11 -10 -9 ------- Run | Yrd Mat Mat Active Infowar (turns) 954 | . 708 246 Sensors 954 | . 708 246 Robot Analysis Total . | . . . Derelict Logs Recovered . | . . . Drone Launches . | . . . Drone Recoveries . | . . . Exploration | -11 -10 -9 ------------- Run | Yrd Mat Mat Turns Passed 1408 | 151 815 442 Spaces Moved 793 | 96 478 219 Core 30 | 12 . 18 Treads 710 | 84 443 183 Legs 11 | . . 11 Wheels . | . . . Hover 42 | . 35 7 Flight . | . . . Fastest Speed 50 | 50 160 50 Average Speed 156 | 146 161 151 Slowest Speed 180 | 160 180 160 Overloaded Moves . | . . . Propulsion Burnouts . | . . . Robots Hopped . | . . . Potential Cave-ins . | . . . Cave-ins Triggered . | . . . Exploration Rate (%) 26 | 6 58 15 Regions Visited 2 Branch Regions . Pre-discovered Areas . | . . . Known Exits Taken . | . . . Unknown Exits Taken 2 | 1 1 . Scrap Searched . | . . . Spaces Dug . | . . . Terrain Destroyed 90 | . 33 57 Melee . | . . . Projectile . | . . . AOE 90 | . 33 57 Terrain Rammed . | . . . Walls Destroyed . | . . . Machines Disabled . | . . . Actions | -11 -10 -9 --------- Run | Yrd Mat Mat Total 911 | 107 513 291 Wait 1 | . 1 . Move 791 | 95 477 219 Hop . | . . . Pick Up 23 | 6 9 8 Fast Attach . | . . . Attach 24 | 6 6 12 Detach 6 | . 4 2 Swap 6 | . 6 . Drop 4 | . 4 . Fire 32 | . 6 26 Melee . | . . . Ram 13 | . . 13 Kick 7 | . . 7 Crush 4 | . . 4 Escape Stasis . | . . . Rewire . | . . . Trap . | . . . Miscellaneous . | . . . Route ------- -11/Scrapyard -10/Materials (discovered 4 exits: *Mat x2 / [*Min x2]) -9/Materials (discovered 1 exit: [*Mat]) History --------- Turn | Location | Event 15 | -11/Scrapyard | Discovered new exit (range 14) 152 | -11/Scrapyard | Entered Materials 336 | -10/Materials | Build established: Mutant 435 | -10/Materials | Discovered new exit (range 9) 454 | -10/Materials | Discovered new exit (range 9) 663 | -10/Materials | Discovered new exit (range 16) 706 | -10/Materials | Repaired Datajack 732 | -10/Materials | Repaired Lgt. Treads? 906 | -10/Materials | Discovered new exit (range 10) 967 | -10/Materials | Entered another Materials area 967 | -9/Materials | Evolved 2 slots: Power x1, Weapon x1 1190 | -9/Materials | Discovered new exit (range 9) 1329 | -9/Materials | Core integrity fell below 50% 1371 | -9/Materials | Lost 7 parts (1p3n3w) 1379 | -9/Materials | Core integrity fell below 20% 1409 | -9/Materials | Destroyed by G-34 Mercenary with Small Laser Last Messages --------------- 01366_ Kicked G-34 Mercenary. 01369_ R-06 Scavenger collects Corrupted Imp. Ion Engine. 01369_ Kicked G-34 Mercenary out of the way. 01370_ Kicked G-34 Mercenary. 01370_ K-01 Serf collects debris. 01371_ Kicked G-34 Mercenary out of the way. 01372_ R-06 Scavenger collects Lgt. Armor Plating. 01372_ K-01 Serf collects debris. 01372_ Kicked G-34 Mercenary. 01372_ Critical hit (Burn: +37). 01374_ Kicked G-34 Mercenary. 01374_ K-01 Serf collects debris. 01375_ Imp. Aluminum Leg destroyed. 01375_ Slammed into G-34 Mercenary. 01375_ K-01 Serf collects debris. 01376_ Slammed into G-34 Mercenary. 01380_ Destabilizing: System corrupted (+1). 01381_ Slammed into G-34 Mercenary. 01384_ Acquired Lgt. Treads. 01408_ Slammed into G-34 Mercenary. Map ----- +----------------------------------------------------+ | ?????????????????????????????????????????????????? | | ??????????????????????? ?????????????????????????? | | ??????????????????????? ????????????????????????? | | ????????????????????????=???????????#?#???+#?????? | | ??????????????????????? ???????????# #??? #?????? | | ???????????????????????"" ??????????# #??? #?????? | | ??????????????????????""" ??######??# #??# #?????? | | ?? ??????????????????"" ### # #### ### #????? | | ? ??????????????????? # ^ " ?????? | | ? ????????????????????# ??????? | | ? ????????????????????## """ ######### | | ? ???????????????????## """ | | ?# ???###########?????# # """ #### | | ?# ???# """" #?????## # | | ?# #??# #?????# # | | ?# #??# #?????## + " | | ?# #??# #?#######"" # | | ?# #### ### #""" ########+## = # | | ?# ## #"S # # ! ## | | ?# #??# #?# """ #""" ## """ ! # | | ?# #??# #?# """ # "" ## """ # | | ?# ##### ! ###### """ # ## """ # # | | ?# % # ######### ""## ## | | ?# %!%!% + """ #???????# """ ""## #? | | ?# %% ! # """ #???????# """ T"## #? | | ?###+#### # <%%### #Y"""@#???????# """ ""## #? | | ????????#### %##?# # g#???????# ## #? | | ???????????#####??# # #???????########### #? | | ??????????????????# # #?????????????????#####? | | ??????????????????# #######??????????????????????? | | ??????????????????? #????????????????????????????? | | ???????????????????##????????????????????????????? | | ?????????????????????????????????????????????????? | | ?????????????????????????????????????????????????? | | ?????????????????????????????????????????????????? | | | | | | | | | | | | | | | | | | | | | | | | | | | | | | | +----------------------------------------------------+ Best States ------------- Heat Dissipation 28 Energy Generation 10 Energy Capacity 125 Matter Stores 300 Matter Capacity 300 Sight Range 16 Robot Scan Range 14 Terrain Scan Density 10 Core Shielding 20 Evasion (%) 55 Recoil Reduction 2 Offensive Hacking 10 Item Schematics ----------------- None Robot Schematics ------------------ None Fabricated ------------ Nothing Repaired ---------- Lgt. Treads | 92% | -10/Materials Studied --------- None Alien Tech Used ----------------- None Achievements -------------- Fitting Room Resistances Are Futile Challenges ------------ None Game ------ Seed ArmoredBlanketSaw Manual? 0 Play Time 00:35:06 Cumulative 2.4 hours Start 2026.09.05 @ 08:27:59 End 2026.09.05 @ 09:44:33 Sessions 1 Manual Loads 0 Difficulty Rogue Special Mode None Game No. 5 Rogue 4 Adventurer 1 Explorer 0 Win Type - Total 0 Types 0/0/0/0/0/0/0/0/0/0 Lore% 0 Gallery% 3 Achievement% 3 Wizard Run 0 Options --------- Layout 0 ASCII 1 Keyboard 1 Movement Numpad Keybinds 0 Fullscreen 2 Font 36/Smallcaps Map View 76x50 Zoom Use 0% Tactical HUD 1 Map Filters NONE Filters NONE Steam 1 RUN: 32361876-4f3b-4faa-8368-d45f740b097b